[Event "44th Chess Olympiad Women 2022"]
[Site "Chennai"]
[Date "2022.07.31"]
[Round "3.44"]
[White "Ramirez Gonzalez, Maria Jose"]
[Black "Dunat, Kinberlie"]
[Result "1-0"]
[WhiteElo "1809"]
[BlackElo "1398"]
[Annotator "NA RC"]
[PlyCount "61"]
[EventDate "2022.??.??"]
[TimeControl "60"]

1. d4 {[%emt 0:00:04]} d5 {[%emt 0:00:03]} 2. c4 {[%emt 0:00:05]} dxc4 {
[%emt 0:00:42]} 3. e3 {[%emt 0:00:10]} Bf5 {[%emt 0:00:42]} 4. Bxc4 {[%emt 0:
00:00]} e6 {[%emt 0:01:32]} 5. Nf3 {[%emt 0:03:23]} Bd6 {[%emt 0:00:56]} 6. Nc3
{[%emt 0:01:01]} Nf6 {[%emt 0:01:12]} 7. Qe2 {[%emt 0:01:27]} Bg4 {[%emt 0:00:
00]} 8. h3 {[%emt 0:05:43]} Bh5 {[%emt 0:00:52]} 9. O-O {[%emt 0:01:33]} c6 {
[%emt 0:01:00]} 10. e4 {[%emt 0:00:55]} e5 {[%emt 0:03:38]} 11. g4 {[%emt 0:00:
00]} Nxg4 {[%emt 0:07:51]} 12. hxg4 {[%emt 0:00:34]} Bxg4 {[%emt 0:01:23]} 13.
Kg2 {[%emt 0:23:15]} Qd7 {[%emt 0:01:59]} 14. Rh1 {[%emt 0:03:29]} O-O {
[%emt 0:03:40]} 15. dxe5 {[%emt 0:03:44]} Bxf3+ {[%emt 0:06:32]} 16. Qxf3 {
[%emt 0:00:08]} Bxe5 {[%emt 0:00:50]} 17. Qh5 {[%emt 0:01:17]} h6 {[%emt 0:00:
00]} 18. Qxe5 {[%emt 0:02:29]} Re8 {[%emt 0:06:13]} 19. Qg3 {[%emt 0:03:38]}
Kf8 {[%emt 0:02:55]} 20. Bf4 {[%emt 0:00:53]} Qd4 {[%emt 0:03:03]} 21. Bb3 {
[%emt 0:03:27]} Qf6 {[%emt 0:01:22]} 22. Rad1 {[%emt 0:00:35]} g5 {[%emt 0:00:
00]} 23. Bxb8 {[%emt 0:02:21]} Raxb8 {[%emt 0:00:57]} 24. Rd7 {[%emt 0:00:40]}
Re7 {[%emt 0:01:23]} 25. Qxb8+ {[%emt 0:01:50]} Kg7 {[%emt 0:01:30]} 26. Rxe7 {
[%emt 0:00:57]} Qxe7 {[%emt 0:01:12]} 27. Rd1 {[%emt 0:00:54]} g4 {[%emt 0:00:
00]} 28. Qf4 {[%emt 0:01:21]} h5 {[%emt 0:04:27]} 29. Qf5 {[%emt 0:00:52]} Kh6
{[%emt 0:02:00]} 30. Bxf7 {[%emt 0:00:26]} Qg5 {[%emt 0:01:55]} 31. Rd6+ {
[%emt 0:00:25]} 1-0

[Event "44th Chess Olympiad Women 2022"]
[Site "Chennai"]
[Date "2022.07.31"]
[Round "3.44"]
[White "Seine, Rose Berline"]
[Black "Hernandez Alvarez, Tania Regla"]
[Result "0-1"]
[WhiteElo "1679"]
[BlackElo "2058"]
[Annotator "NA"]
[PlyCount "100"]
[EventDate "2022.??.??"]
[TimeControl "60"]

1. d4 {[%emt 0:00:10]} c5 {[%emt 0:00:11]} 2. Nf3 {[%emt 0:00:21]} cxd4 {
[%emt 0:00:27]} 3. Nxd4 {[%emt 0:00:06]} Nc6 {[%emt 0:00:11]} 4. c4 {[%emt 0:
00:00]} Nf6 {[%emt 0:00:32]} 5. Nc3 {[%emt 0:00:11]} g6 {[%emt 0:00:19]} 6. b3
{[%emt 0:00:47]} Bg7 {[%emt 0:01:17]} 7. Bb2 {[%emt 0:00:39]} O-O {[%emt 0:00:
00]} 8. e3 {[%emt 0:00:28]} Qa5 {[%emt 0:01:47]} 9. Qd2 {[%emt 0:00:32]} Rd8 {
[%emt 0:02:44]} 10. Bd3 {[%emt 0:08:07]} Qg5 {[%emt 0:10:37]} 11. f4 {[%emt 0:
00:00]} Qh5 {[%emt 0:02:08]} 12. Nf3 {[%emt 0:02:24]} d5 {[%emt 0:02:19]} 13.
Qe2 {[%emt 0:04:14]} Nb4 {[%emt 0:02:00]} 14. Bb1 {[%emt 0:01:05]} dxc4 {
[%emt 0:03:34]} 15. bxc4 {[%emt 0:03:14]} Qc5 {[%emt 0:02:19]} 16. h3 {[%emt 0:
00:00]} Be6 {[%emt 0:00:35]} 17. a3 {[%emt 0:01:26]} Nc6 {[%emt 0:00:24]} 18.
Ba2 {[%emt 0:00:44]} Nh5 {[%emt 0:06:20]} 19. Ne4 {[%emt 0:05:31]} Qa5+ {
[%emt 0:01:29]} 20. Kf2 {[%emt 0:00:25]} Nxf4 {[%emt 0:06:55]} 21. exf4 {
[%emt 0:04:51]} Qb6+ {[%emt 0:00:09]} 22. Kg3 {[%emt 0:00:13]} Qxb2 {[%emt 0:
00:00]} 23. Qxb2 {[%emt 0:00:09]} Bxb2 {[%emt 0:00:10]} 24. Rab1 {[%emt 0:00:
00]} Bxa3 {[%emt 0:00:15]} 25. Rb3 {[%emt 0:06:05]} Bb4 {[%emt 0:01:15]} 26.
Rb2 {[%emt 0:04:42]} a5 {[%emt 0:00:26]} 27. Kf2 {[%emt 0:01:36]} h6 {[%emt 0:
00:00]} 28. g4 {[%emt 0:00:40]} Nd4 {[%emt 0:00:35]} 29. Ne5 {[%emt 0:03:52]}
Rac8 {[%emt 0:00:18]} 30. Nd3 {[%emt 0:05:29]} Bxc4 {[%emt 0:10:45]} 31. Nxb4 {
[%emt 0:01:56]} axb4 {[%emt 0:00:10]} 32. Bxc4 {[%emt 0:01:05]} Rxc4 {[%emt 0:
00:00]} 33. Nd2 {[%emt 0:01:27]} Rc2 {[%emt 0:01:12]} 34. Rxc2 {[%emt 0:02:37]}
Nxc2 {[%emt 0:00:11]} 35. Ke2 {[%emt 0:01:28]} Nd4+ {[%emt 0:06:07]} 36. Ke3 {
[%emt 0:00:39]} f5 {[%emt 0:00:38]} 37. Rb1 {[%emt 0:01:32]} b5 {[%emt 0:00:38]
} 38. Rc1 {[%emt 0:00:17]} Kf7 {[%emt 0:00:42]} 39. Rb1 {[%emt 0:01:45]} g5 {
[%emt 0:04:30]} 40. fxg5 {[%emt 0:01:32]} hxg5 {[%emt 0:00:17]} 41. Nb3 {
[%emt 0:35:06]} Nc2+ {[%emt 0:33:08]} 42. Ke2 {[%emt 0:00:44]} f4 {[%emt 0:00:
00]} 43. Nc5 {[%emt 0:01:54]} Rc8 {[%emt 0:03:21]} 44. Ne4 {[%emt 0:00:49]} Kg6
{[%emt 0:00:11]} 45. Rd1 {[%emt 0:16:05]} Rc4 {[%emt 0:02:44]} 46. Kf3 {
[%emt 0:00:42]} Nd4+ {[%emt 0:05:42]} 47. Kf2 {[%emt 0:01:45]} e5 {[%emt 0:00:
00]} 48. Rb1 {[%emt 0:02:18]} b3 {[%emt 0:00:54]} 49. Rd1 {[%emt 0:05:16]} b2 {
[%emt 0:01:34]} 50. Nd2 {[%emt 0:00:00]} Rc1 {[%emt 0:00:00]} 0-1

[Event "44th Chess Olympiad Women 2022"]
[Site "Chennai"]
[Date "2022.07.31"]
[Round "3.45"]
[White "Psaila, Uranchimeg"]
[Black "Noshin, Anjum"]
[Result "0-1"]
[WhiteElo "1395"]
[BlackElo "2027"]
[Annotator "NA RC"]
[PlyCount "116"]
[EventDate "2022.??.??"]
[TimeControl "60"]

1. d4 {[%emt 0:00:15]} d5 {[%emt 0:00:08]} 2. Bf4 {[%emt 0:00:24]} Nf6 {
[%emt 0:00:08]} 3. e3 {[%emt 0:00:33]} e6 {[%emt 0:00:18]} 4. Nd2 {[%emt 0:00:
00]} Bd6 {[%emt 0:00:33]} 5. Bg3 {[%emt 0:00:32]} c5 {[%emt 0:01:25]} 6. c3 {
[%emt 0:00:23]} O-O {[%emt 0:00:28]} 7. Bd3 {[%emt 0:00:30]} Qc7 {[%emt 0:00:
00]} 8. Ngf3 {[%emt 0:01:36]} Nbd7 {[%emt 0:00:18]} 9. e4 {[%emt 0:06:34]} dxe4
{[%emt 0:07:31]} 10. Nxe4 {[%emt 0:00:19]} Nxe4 {[%emt 0:00:37]} 11. Bxe4 {
[%emt 0:00:10]} Nf6 {[%emt 0:02:41]} 12. Bc2 {[%emt 0:03:08]} Rd8 {[%emt 0:00:
00]} 13. Qe2 {[%emt 0:22:18]} Bd7 {[%emt 0:18:23]} 14. O-O {[%emt 0:03:16]}
Bxg3 {[%emt 0:06:05]} 15. hxg3 {[%emt 0:01:25]} a6 {[%emt 0:07:25]} 16. a4 {
[%emt 0:07:27]} Rac8 {[%emt 0:03:38]} 17. dxc5 {[%emt 0:03:50]} Qxc5 {[%emt 0:
00:00]} 18. Rfd1 {[%emt 0:00:57]} Qh5 {[%emt 0:08:46]} 19. Rd4 {[%emt 0:04:59]}
Bc6 {[%emt 0:02:36]} 20. Rad1 {[%emt 0:02:38]} Rxd4 {[%emt 0:04:14]} 21. Rxd4 {
[%emt 0:00:11]} g6 {[%emt 0:02:57]} 22. Qe5 {[%emt 0:06:54]} Qxe5 {[%emt 0:00:
00]} 23. Nxe5 {[%emt 0:00:14]} Kf8 {[%emt 0:02:16]} 24. f3 {[%emt 0:06:38]} Ke7
{[%emt 0:00:13]} 25. Kf2 {[%emt 0:00:47]} Nd7 {[%emt 0:05:50]} 26. Nc4 {
[%emt 0:03:16]} Bd5 {[%emt 0:02:45]} 27. Ne3 {[%emt 0:01:42]} Bc6 {[%emt 0:00:
00]} 28. b3 {[%emt 0:05:22]} h5 {[%emt 0:00:10]} 29. c4 {[%emt 0:02:08]} a5 {
[%emt 0:00:15]} 30. Nd1 {[%emt 0:02:24]} Nc5 {[%emt 0:00:49]} 31. Rd2 {[%emt 0:
00:00]} b6 {[%emt 0:00:57]} 32. Nb2 {[%emt 0:00:40]} Rc7 {[%emt 0:01:05]} 33.
Nd3 {[%emt 0:01:20]} Rd7 {[%emt 0:00:08]} 34. Ke3 {[%emt 0:00:33]} Nxd3 {
[%emt 0:00:44]} 35. Rxd3 {[%emt 0:00:29]} Rxd3+ {[%emt 0:01:04]} 36. Bxd3 {
[%emt 0:00:18]} Kd6 {[%emt 0:00:37]} 37. Kd4 {[%emt 0:01:57]} e5+ {[%emt 0:00:
00]} 38. Kc3 {[%emt 0:00:28]} Kc5 {[%emt 0:00:11]} 39. Bc2 {[%emt 0:03:22]} Bb7
{[%emt 0:00:27]} 40. Bd3 {[%emt 0:00:18]} Bc6 {[%emt 0:00:05]} 41. Bc2 {
[%emt 0:30:39]} f5 {[%emt 0:34:25]} 42. Bd3 {[%emt 0:05:32]} e4 {[%emt 0:00:00]
} 43. Be2 {[%emt 0:00:00]} exf3 {[%emt 0:00:00]} 44. gxf3 {[%emt 0:00:00]} g5 {
[%emt 0:00:00]} 45. Bd1 {[%emt 0:00:00]} g4 {[%emt 0:00:00]} 46. fxg4 {[%emt 0:
00:00]} hxg4 {[%emt 0:00:00]} 47. Kd3 {[%emt 0:00:00]} Be4+ {[%emt 0:00:00]}
48. Ke3 {[%emt 0:00:10]} Bb1 {[%emt 0:00:00]} 49. Be2 {[%emt 0:01:10]} Bc2 {
[%emt 0:00:00]} 50. Kf4 {[%emt 0:00:27]} Kd4 {[%emt 0:00:18]} 51. Bf1 {[%emt 0:
00:00]} Bxb3 {[%emt 0:00:12]} 52. Kxf5 {[%emt 0:00:28]} Bxa4 {[%emt 0:00:06]}
53. Kxg4 {[%emt 0:00:23]} Bd7+ {[%emt 0:00:06]} 54. Kf4 {[%emt 0:00:23]} a4 {
[%emt 0:00:06]} 55. Be2 {[%emt 0:01:47]} a3 {[%emt 0:00:10]} 56. g4 {[%emt 0:
00:00]} Bxg4 {[%emt 0:00:18]} 57. Kxg4 {[%emt 0:00:11]} a2 {[%emt 0:00:04]} 58.
Kf3 {[%emt 0:00:26]} a1=Q {[%emt 0:00:12]} 0-1

[Event "44th Chess Olympiad Women 2022"]
[Site "Chennai"]
[Date "2022.07.31"]
[Round "3.45"]
[White "Sultana, Sharmin Shirin"]
[Black "Thornton, Filipina"]
[Result "1-0"]
[WhiteElo "1995"]
[BlackElo "1661"]
[Annotator "NA RC"]
[PlyCount "95"]
[EventDate "2022.??.??"]
[TimeControl "60"]

1. d4 {[%emt 0:00:06]} Nf6 {[%emt 0:00:06]} 2. c4 {[%emt 0:00:10]} g6 {[%emt 0:
00:00]} 3. Nc3 {[%emt 0:00:08]} Bg7 {[%emt 0:00:10]} 4. e4 {[%emt 0:00:17]} d6
{[%emt 0:00:06]} 5. Be2 {[%emt 0:00:03]} O-O {[%emt 0:00:27]} 6. Bg5 {[%emt 0:
00:00]} c5 {[%emt 0:01:25]} 7. d5 {[%emt 0:01:15]} h6 {[%emt 0:00:33]} 8. Be3 {
[%emt 0:00:21]} a6 {[%emt 0:04:03]} 9. h3 {[%emt 0:13:51]} Qa5 {[%emt 0:02:17]}
10. Qd2 {[%emt 0:00:53]} Kh7 {[%emt 0:04:01]} 11. Nf3 {[%emt 0:14:13]} Nbd7 {
[%emt 0:02:16]} 12. O-O {[%emt 0:04:25]} Ng8 {[%emt 0:01:50]} 13. Bd3 {[%emt 0:
00:00]} Ne5 {[%emt 0:04:18]} 14. Nxe5 {[%emt 0:07:29]} Bxe5 {[%emt 0:00:14]}
15. f4 {[%emt 0:00:43]} Bxc3 {[%emt 0:08:03]} 16. bxc3 {[%emt 0:00:30]} f5 {
[%emt 0:00:45]} 17. e5 {[%emt 0:05:31]} b5 {[%emt 0:02:16]} 18. Rab1 {[%emt 0:
00:00]} Bd7 {[%emt 0:04:32]} 19. Rb2 {[%emt 0:07:33]} bxc4 {[%emt 0:08:31]} 20.
Bxc4 {[%emt 0:00:51]} Bb5 {[%emt 0:01:19]} 21. Bd3 {[%emt 0:04:08]} Bxd3 {
[%emt 0:02:47]} 22. Qxd3 {[%emt 0:00:02]} Rfb8 {[%emt 0:03:25]} 23. Rfb1 {
[%emt 0:03:39]} Rxb2 {[%emt 0:00:30]} 24. Rxb2 {[%emt 0:00:02]} Qc7 {[%emt 0:
00:00]} 25. exd6 {[%emt 0:11:45]} exd6 {[%emt 0:00:52]} 26. Qb1 {[%emt 0:00:16]
} Ra7 {[%emt 0:01:26]} 27. Rb8 {[%emt 0:01:16]} Qe7 {[%emt 0:02:02]} 28. Bf2 {
[%emt 0:02:30]} Nf6 {[%emt 0:07:10]} 29. c4 {[%emt 0:00:14]} Ne4 {[%emt 0:00:
00]} 30. Be1 {[%emt 0:00:16]} Qg7 {[%emt 0:05:01]} 31. Qb6 {[%emt 0:01:51]} Qe7
{[%emt 0:13:14]} 32. Qc6 {[%emt 0:04:44]} Nf6 {[%emt 0:08:07]} 33. Bf2 {
[%emt 0:01:17]} Ne4 {[%emt 0:04:05]} 34. Qc8 {[%emt 0:00:28]} Qg7 {[%emt 0:00:
00]} 35. Bh4 {[%emt 0:01:05]} Rc7 {[%emt 0:03:21]} 36. Qd8 {[%emt 0:03:53]} Rb7
{[%emt 0:01:37]} 37. Rc8 {[%emt 0:00:09]} Rd7 {[%emt 0:00:44]} 38. Qe8 {
[%emt 0:00:23]} Qa1+ {[%emt 0:00:23]} 39. Kh2 {[%emt 0:00:02]} Qg7 {[%emt 0:00:
00]} 40. Qe6 {[%emt 0:01:15]} Rb7 {[%emt 0:01:07]} 41. Re8 {[%emt 0:31:44]} a5
{[%emt 0:03:23]} 42. Be7 {[%emt 0:00:00]} h5 {[%emt 0:16:22]} 43. Bxd6 {
[%emt 0:00:00]} Nxd6 {[%emt 0:03:57]} 44. Qxd6 {[%emt 0:00:00]} Qd4 {[%emt 0:
00:00]} 45. Qe5 {[%emt 0:00:00]} Qxe5 {[%emt 0:03:26]} 46. fxe5 {[%emt 0:00:00]
} Kg7 {[%emt 0:01:35]} 47. Rc8 {[%emt 0:00:00]} Rb2 {[%emt 0:01:17]} 48. d6 {
[%emt 0:00:00]} 1-0

[Event "44th Chess Olympiad Women 2022"]
[Site "Chennai"]
[Date "2022.07.31"]
[Round "3.45"]
[White "Talukder, Umme Taslima Protiv"]
[Black "Stagno, Milena"]
[Result "1-0"]
[WhiteElo "1769"]
[BlackElo "1448"]
[Annotator "NA RC"]
[PlyCount "125"]
[EventDate "2022.??.??"]
[TimeControl "60"]

1. d4 {[%emt 0:00:12]} d5 {[%emt 0:00:27]} 2. c4 {[%emt 0:00:27]} c6 {[%emt 0:
00:00]} 3. Nc3 {[%emt 0:00:39]} e6 {[%emt 0:00:41]} 4. Nf3 {[%emt 0:00:26]} Nf6
{[%emt 0:00:48]} 5. Bg5 {[%emt 0:01:00]} Be7 {[%emt 0:00:38]} 6. e3 {[%emt 0:
00:00]} Nbd7 {[%emt 0:00:58]} 7. cxd5 {[%emt 0:00:27]} exd5 {[%emt 0:03:43]} 8.
Bd3 {[%emt 0:00:55]} O-O {[%emt 0:01:13]} 9. O-O {[%emt 0:01:36]} Ne4 {[%emt 0:
00:00]} 10. Bf4 {[%emt 0:02:47]} Ndf6 {[%emt 0:02:24]} 11. Qc2 {[%emt 0:01:28]}
Bf5 {[%emt 0:09:15]} 12. Nh4 {[%emt 0:05:54]} Nxc3 {[%emt 0:01:12]} 13. Nxf5 {
[%emt 0:01:11]} Nce4 {[%emt 0:00:52]} 14. Be5 {[%emt 0:03:32]} Re8 {[%emt 0:00:
00]} 15. Rae1 {[%emt 0:05:25]} h6 {[%emt 0:02:05]} 16. f3 {[%emt 0:06:23]} Nd6
{[%emt 0:05:44]} 17. Nxe7+ {[%emt 0:03:31]} Qxe7 {[%emt 0:02:57]} 18. e4 {
[%emt 0:06:47]} Nd7 {[%emt 0:08:47]} 19. exd5 {[%emt 0:03:14]} cxd5 {[%emt 0:
00:00]} 20. Bg3 {[%emt 0:10:16]} Qf6 {[%emt 0:01:10]} 21. Qa4 {[%emt 0:08:47]}
Nb6 {[%emt 0:04:49]} 22. Qb4 {[%emt 0:03:30]} Ndc4 {[%emt 0:01:49]} 23. Bf2 {
[%emt 0:04:01]} a5 {[%emt 0:05:25]} 24. Qb5 {[%emt 0:03:01]} Rec8 {[%emt 0:00:
00]} 25. Re2 {[%emt 0:05:30]} Qd8 {[%emt 0:04:57]} 26. Rfe1 {[%emt 0:02:02]}
Nd6 {[%emt 0:00:14]} 27. Qb3 {[%emt 0:01:11]} a4 {[%emt 0:00:30]} 28. Qb4 {
[%emt 0:04:21]} Qc7 {[%emt 0:06:03]} 29. Bg3 {[%emt 0:01:02]} Nbc4 {[%emt 0:00:
00]} 30. b3 {[%emt 0:01:01]} axb3 {[%emt 0:00:12]} 31. axb3 {[%emt 0:00:36]}
Qa5 {[%emt 0:01:08]} 32. Qxa5 {[%emt 0:00:14]} Nxa5 {[%emt 0:00:06]} 33. Bxd6 {
[%emt 0:00:36]} Nxb3 {[%emt 0:00:10]} 34. Bc5 {[%emt 0:00:59]} g6 {[%emt 0:00:
00]} 35. Rb2 {[%emt 0:02:38]} Ra1 {[%emt 0:02:45]} 36. Rxa1 {[%emt 0:00:48]}
Nxa1 {[%emt 0:00:02]} 37. Rxb7 {[%emt 0:00:27]} Kg7 {[%emt 0:01:45]} 38. Kf2 {
[%emt 0:01:14]} Kf6 {[%emt 0:00:27]} 39. f4 {[%emt 0:00:21]} h5 {[%emt 0:00:32]
} 40. h3 {[%emt 0:01:14]} Ra8 {[%emt 0:01:11]} 41. Be7+ {[%emt 0:31:26]} Ke6 {
[%emt 0:30:21]} 42. g4 {[%emt 0:01:46]} hxg4 {[%emt 0:01:08]} 43. hxg4 {
[%emt 0:00:02]} f5 {[%emt 0:00:08]} 44. gxf5+ {[%emt 0:00:37]} gxf5 {[%emt 0:
00:00]} 45. Bc5 {[%emt 0:01:01]} Ra2+ {[%emt 0:00:13]} 46. Kf3 {[%emt 0:01:20]}
Nc2 {[%emt 0:00:00]} 47. Rb6+ {[%emt 0:00:00]} Kf7 {[%emt 0:00:00]} 48. Bxf5 {
[%emt 0:00:00]} Ne1+ {[%emt 0:00:00]} 49. Kg3 {[%emt 0:00:00]} Rg2+ {[%emt 0:
00:00]} 50. Kh3 {[%emt 0:00:00]} Re2 {[%emt 0:00:00]} 51. Bg6+ {[%emt 0:00:00]}
Kg7 {[%emt 0:00:00]} 52. f5 {[%emt 0:00:00]} Re3+ {[%emt 0:00:00]} 53. Kh2 {
[%emt 0:00:00]} Nf3+ {[%emt 0:00:00]} 54. Kg2 {[%emt 0:00:00]} Nh4+ {[%emt 0:
00:00]} 55. Kf2 {[%emt 0:00:00]} Rf3+ {[%emt 0:00:00]} 56. Ke2 {[%emt 0:00:00]}
Rf4 {[%emt 0:00:00]} 57. Rb7+ {[%emt 0:00:00]} Kh8 {[%emt 0:00:00]} 58. Bd6 {
[%emt 0:00:00]} Re4+ {[%emt 0:00:00]} 59. Kd3 {[%emt 0:00:00]} Nf3 {[%emt 0:00:
00]} 60. Be5+ {[%emt 0:00:00]} Nxe5+ {[%emt 0:00:00]} 61. dxe5 {[%emt 0:00:31]}
Rxe5 {[%emt 0:00:00]} 62. f6 {[%emt 0:00:00]} Re1 {[%emt 0:00:00]} 63. Rb8+ {
[%emt 0:00:00]} 1-0

[Event "44th Chess Olympiad Women 2022"]
[Site "Chennai"]
[Date "2022.07.31"]
[Round "3.46"]
[White "Al Balushi, Mariya"]
[Black "Bacic, Kristina"]
[Result "0-1"]
[WhiteElo "1660"]
[BlackElo "1866"]
[Annotator "NA RC"]
[PlyCount "50"]
[EventDate "2022.??.??"]
[TimeControl "60"]

1. e4 {[%emt 0:00:03]} c5 {[%emt 0:00:15]} 2. b3 {[%emt 0:00:28]} Nf6 {[%emt 0:
00:00]} 3. Nc3 {[%emt 0:00:46]} d6 {[%emt 0:00:14]} 4. h3 {[%emt 0:01:54]} g6 {
[%emt 0:00:23]} 5. Bb2 {[%emt 0:01:27]} Bg7 {[%emt 0:00:33]} 6. Bc4 {[%emt 0:
00:00]} Nxe4 {[%emt 0:04:07]} 7. Qf3 {[%emt 0:05:14]} Ng5 {[%emt 0:07:25]} 8.
Qe2 {[%emt 0:10:49]} Ne6 {[%emt 0:04:39]} 9. Nf3 {[%emt 0:07:01]} O-O {[%emt 0:
00:00]} 10. O-O {[%emt 0:01:37]} Nc6 {[%emt 0:01:36]} 11. Rad1 {[%emt 0:09:22]}
Ned4 {[%emt 0:15:27]} 12. Nxd4 {[%emt 0:08:06]} cxd4 {[%emt 0:03:01]} 13. Na4 {
[%emt 0:01:58]} a6 {[%emt 0:01:56]} 14. Bd5 {[%emt 0:03:13]} Nb4 {[%emt 0:00:
00]} 15. Qc4 {[%emt 0:07:58]} Qa5 {[%emt 0:05:25]} 16. Bf3 {[%emt 0:06:24]} b5
{[%emt 0:03:18]} 17. Qe2 {[%emt 0:02:03]} Ra7 {[%emt 0:00:31]} 18. c3 {[%emt 0:
00:00]} bxa4 {[%emt 0:01:42]} 19. cxb4 {[%emt 0:01:23]} Qxb4 {[%emt 0:01:05]}
20. Qc4 {[%emt 0:00:47]} a5 {[%emt 0:03:35]} 21. Qxb4 {[%emt 0:09:10]} axb4 {
[%emt 0:00:08]} 22. bxa4 {[%emt 0:01:39]} Rxa4 {[%emt 0:00:46]} 23. Ra1 {
[%emt 0:01:50]} Be6 {[%emt 0:01:43]} 24. Bd1 {[%emt 0:03:35]} Rxa2 {[%emt 0:00:
00]} 25. Re1 {[%emt 0:02:37]} Rxb2 {[%emt 0:00:55]} 0-1

[Event "44th Chess Olympiad Women 2022"]
[Site "Chennai"]
[Date "2022.07.31"]
[Round "3.46"]
[White "Koljevic, Nikolina"]
[Black "Al Aisaee, Anat"]
[Result "1-0"]
[WhiteElo "2014"]
[BlackElo "1681"]
[Annotator "NA"]
[PlyCount "73"]
[EventDate "2022.??.??"]
[TimeControl "60"]

1. e4 {[%emt 0:00:02]} c5 {[%emt 0:00:41]} 2. Nf3 {[%emt 0:00:09]} a6 {[%emt 0:
00:00]} 3. Nc3 {[%emt 0:00:45]} Nc6 {[%emt 0:01:30]} 4. d4 {[%emt 0:00:14]}
cxd4 {[%emt 0:00:32]} 5. Nxd4 {[%emt 0:00:09]} e5 {[%emt 0:02:12]} 6. Nf5 {
[%emt 0:03:30]} d6 {[%emt 0:06:43]} 7. Ne3 {[%emt 0:03:44]} Nf6 {[%emt 0:02:16]
} 8. Bc4 {[%emt 0:04:23]} b5 {[%emt 0:07:04]} 9. Bd5 {[%emt 0:02:00]} Bb7 {
[%emt 0:01:51]} 10. O-O {[%emt 0:02:37]} Be7 {[%emt 0:02:13]} 11. Nf5 {[%emt 0:
00:00]} O-O {[%emt 0:04:49]} 12. Qf3 {[%emt 0:11:37]} Re8 {[%emt 0:11:06]} 13.
Qg3 {[%emt 0:05:47]} g6 {[%emt 0:15:49]} 14. Nh6+ {[%emt 0:00:39]} Kf8 {
[%emt 0:12:46]} 15. Nxf7 {[%emt 0:01:17]} Qb8 {[%emt 0:00:30]} 16. Nxe5 {
[%emt 0:04:38]} Kg7 {[%emt 0:06:09]} 17. Nxc6 {[%emt 0:01:47]} Qc7 {[%emt 0:00:
00]} 18. Nd4 {[%emt 0:01:11]} Kh8 {[%emt 0:00:57]} 19. Bf7 {[%emt 0:04:50]} Bf8
{[%emt 0:05:52]} 20. Bxe8 {[%emt 0:01:22]} Rxe8 {[%emt 0:04:17]} 21. f3 {
[%emt 0:00:17]} Nh5 {[%emt 0:01:44]} 22. Qg5 {[%emt 0:05:33]} Bg7 {[%emt 0:00:
00]} 23. Nb3 {[%emt 0:09:27]} Re5 {[%emt 0:02:38]} 24. Qh4 {[%emt 0:02:13]} Nf6
{[%emt 0:03:10]} 25. Bg5 {[%emt 0:01:51]} Nd7 {[%emt 0:01:59]} 26. Rad1 {
[%emt 0:02:34]} Re8 {[%emt 0:01:14]} 27. Nd5 {[%emt 0:03:31]} Bxd5 {[%emt 0:00:
00]} 28. Rxd5 {[%emt 0:00:02]} Re6 {[%emt 0:00:40]} 29. Qh3 {[%emt 0:04:15]}
Re8 {[%emt 0:00:53]} 30. Rfd1 {[%emt 0:00:07]} Bf8 {[%emt 0:00:12]} 31. Bf4 {
[%emt 0:02:25]} Qa7+ {[%emt 0:00:51]} 32. Kf1 {[%emt 0:00:37]} Nf6 {[%emt 0:00:
00]} 33. R5d4 {[%emt 0:01:21]} Nh5 {[%emt 0:00:37]} 34. Bxd6 {[%emt 0:01:26]}
Bxd6 {[%emt 0:00:33]} 35. Rxd6 {[%emt 0:00:02]} Re7 {[%emt 0:00:27]} 36. Qc8+ {
[%emt 0:00:53]} Kg7 {[%emt 0:00:05]} 37. Rd7 {[%emt 0:00:22]} 1-0

[Event "44th Chess Olympiad Women 2022"]
[Site "Chennai"]
[Date "2022.07.31"]
[Round "3.46"]
[White "Popovic, Mateja"]
[Black "Al Bulushi, Rawan"]
[Result "1/2-1/2"]
[WhiteElo "1634"]
[BlackElo "1442"]
[Annotator "NA"]
[PlyCount "54"]
[EventDate "2022.??.??"]
[TimeControl "60"]

1. d4 {[%emt 0:00:21]} d5 {[%emt 0:00:35]} 2. c4 {[%emt 0:00:06]} e6 {[%emt 0:
00:00]} 3. Nc3 {[%emt 0:00:11]} Nf6 {[%emt 0:00:27]} 4. Bg5 {[%emt 0:00:11]}
Be7 {[%emt 0:00:41]} 5. e3 {[%emt 0:00:26]} h6 {[%emt 0:01:51]} 6. Bh4 {
[%emt 0:00:45]} O-O {[%emt 0:02:27]} 7. Nf3 {[%emt 0:01:20]} b6 {[%emt 0:02:17]
} 8. Rc1 {[%emt 0:02:07]} Bb7 {[%emt 0:02:16]} 9. cxd5 {[%emt 0:01:13]} Nxd5 {
[%emt 0:02:46]} 10. Bg3 {[%emt 0:01:18]} Nxc3 {[%emt 0:08:30]} 11. bxc3 {
[%emt 0:00:36]} c5 {[%emt 0:01:40]} 12. Bd3 {[%emt 0:02:45]} Nd7 {[%emt 0:00:
00]} 13. O-O {[%emt 0:01:23]} Nf6 {[%emt 0:04:04]} 14. Nd2 {[%emt 0:07:01]} Qd5
{[%emt 0:14:10]} 15. f3 {[%emt 0:07:21]} Qd7 {[%emt 0:10:43]} 16. Nc4 {[%emt 0:
00:00]} Qc8 {[%emt 0:10:30]} 17. Bd6 {[%emt 0:11:14]} Bxd6 {[%emt 0:08:56]} 18.
Nxd6 {[%emt 0:00:20]} Qc7 {[%emt 0:01:49]} 19. dxc5 {[%emt 0:19:24]} bxc5 {
[%emt 0:01:20]} 20. Nxb7 {[%emt 0:08:45]} Qxb7 {[%emt 0:00:12]} 21. c4 {
[%emt 0:00:13]} Rfd8 {[%emt 0:00:54]} 22. Qc2 {[%emt 0:00:12]} Rab8 {[%emt 0:
00:00]} 23. Rf2 {[%emt 0:03:00]} Qc7 {[%emt 0:01:28]} 24. Rd2 {[%emt 0:04:37]}
Rd7 {[%emt 0:00:52]} 25. Rb1 {[%emt 0:05:19]} Rbd8 {[%emt 0:00:27]} 26. Rbd1 {
[%emt 0:01:09]} Rd6 {[%emt 0:01:50]} 27. Kf2 {[%emt 0:02:49]} e5 {[%emt 0:00:
00]} 1/2-1/2